bitfinex/quotes_SOLUSD_20240607
["timestamp","ask_amount","ask_price","bid_price","bid_amount"]
[1717780667184,2.2104,167.39,167.36,6.0511]
[1717780667393,2.2103,167.4,167.36,6.0511]
[1717780667581,2.2106,167.37,167.36,6.0511]
[1717780667788,2.2106,167.37,167.33,6.0511]
[1717780668268,2.2105,167.38,167.33,8.2622]
[1717780668461,2.2107,167.37,167.33,6.0511]
[1717780668688,2.2106,167.38,167.33,8.2622]
[1717780669967,4.4208,167.39,167.33,6.0511]
[1717780670462,4.4208,167.39,167.32,2.2112]
[1717780670664,2.2107,167.37,167.33,2.2111]
[1717780670860,2.2106,167.38,167.33,8.8713]
[1717780671083,4.4208,167.39,167.33,6.6602]
[1717780671286,2.2108,167.36,167.33,6.6602]
[1717780671493,2.2108,167.36,167.31,8.8716]
[1717780671862,2.2108,167.36,167.32,2.2113]
[1717780672065,2.2108,167.36,167.31,6.6602]
[1717780672066,2.2108,167.36,167.31,8.8716]
[1717780672267,2.2109,167.35,167.31,8.8716]
[1717780672777,2.2107,167.37,167.32,2.2112]
[1717780672984,4.4208,167.39,167.32,2.2112]
[1717780673183,2.2107,167.37,167.32,2.2112]
[1717780673598,2.2107,167.37,167.32,8.382]
[1717780673800,2.2108,167.36,167.32,8.382]
[1717780674108,2.2107,167.37,167.32,8.382]
[1717780674480,2.2108,167.36,167.32,8.382]
[1717780674687,2.2107,167.37,167.32,8.382]
[1717780675176,2.2106,167.38,167.34,2.211]
[1717780675393,2.2104,167.39,167.34,8.5997]
[1717780675594,2.2105,167.38,167.34,6.3887]
[1717780676202,6.18944517,167.42,167.34,11.0551]
[1717780676497,2.21,167.42,167.38,2.2104]
[1717780676801,2.21,167.42,167.38,6.2452]
[1717780677001,2.2101,167.41,167.38,6.2452]
[1717780677795,6.18858512,167.44,167.34,6.1159]
[1717780677985,2.2107,167.37,167.34,6.1159]
[1717780678187,2.2108,167.36,167.34,6.1159]
[1717780678376,2.2106,167.38,167.34,6.1159]
[1717780678698,2.2106,167.38,167.34,8.3269]
[1717780678876,2.2106,167.38,167.34,24.7668]
[1717780679278,2.2104,167.39,167.35,6.1296]
[1717780679502,2.2105,167.38,167.35,6.1296]
[1717780679805,2.2104,167.39,167.35,6.1296]
[1717780680002,2.2105,167.38,167.35,6.1296]
[1717780680303,6.18858512,167.44,167.37,8.3773]
[1717780680492,2.2099,167.43,167.39,8.3771]
[1717780680685,2.2099,167.43,167.4,6.1668]
[1717780681195,2.21,167.42,167.4,6.1668]
[1717780681510,2.2099,167.43,167.4,6.1668]
[1717780681701,6.17857278,167.47,167.4,6.1668]
[1717780681892,11.0483,167.45,167.39,16.321]
[1717780682200,4.4194,167.45,167.39,18.5313]
[1717780682514,2.2101,167.41,167.38,6.3942]
[1717780682682,2.2102,167.4,167.38,6.3942]
[1717780682882,2.2103,167.4,167.38,6.3942]
[1717780683105,2.2102,167.41,167.38,6.3942]
[1717780683407,11.0496,167.43,167.4,6.5242]
[1717780683408,2.2098,167.43,167.4,6.5242]
[1717780683702,6.6288,167.45,167.4,6.5242]
[1717780683909,6.6288,167.45,167.39,15.8439]
[1717780683910,2.2102,167.41,167.37,8.7348]
[1717780684092,2.21,167.42,167.38,6.5242]
[1717780684294,2.2102,167.41,167.37,2.2106]
[1717780684513,2.21,167.42,167.38,2.2105]
[1717780684805,11.0478,167.46,167.37,10.7086]
[1717780685009,2.2098,167.43,167.39,2.2103]
[1717780685199,2.2097,167.44,167.39,2.2103]
[1717780685528,4.4191,167.46,167.39,2.2103]
[1717780685529,2.2099,167.43,167.4,6.6385]
[1717780686106,2.21,167.42,167.4,6.6385]
[1717780686311,4.4205,167.4,167.23,21.9111]
[1717780686488,2.2107,167.37,167.33,2.2111]
[1717780686679,2.2107,167.37,167.33,24.1222]
[1717780687006,2.2103,167.4,167.36,2.2107]
[1717780687190,2.2103,167.4,167.36,8.2764]
[1717780687396,2.2103,167.4,167.37,6.0657]
[1717780687596,2.2102,167.41,167.37,8.2763]
[1717780687904,2.21,167.42,167.38,2.2104]
[1717780688103,2.2101,167.41,167.38,2.2104]
[1717780688403,4.4196,167.44,167.38,8.2761]
[1717780688404,2.21,167.42,167.38,8.2761]
[1717780688581,2.2101,167.41,167.38,6.0657]
[1717780688921,2.2103,167.4,167.36,18.1235]
[1717780689215,2.2102,167.41,167.37,8.2763]
[1717780689400,2.2102,167.41,167.38,2.2105]
[1717780689702,2.2102,167.41,167.37,8.2762]
[1717780689909,2.21,167.42,167.38,2.2105]
[1717780690116,2.2101,167.41,167.38,6.4195]
[1717780690502,2.21,167.42,167.38,8.63]
[1717780690687,4.4195,167.44,167.39,2.2104]
[1717780690892,2.21,167.42,167.38,8.6299]
[1717780691085,2.2102,167.41,167.38,6.4195]
[1717780691288,2.2102,167.4,167.38,6.4195]
[1717780691939,12.35714578,167.47,167.34,6.4195]
[1717780692214,12.35714578,167.47,167.35,8.8353]
[1717780692215,2.2104,167.39,167.35,8.8353]
[1717780692592,2.2104,167.39,167.35,23.8749]
[1717780692810,2.2104,167.39,167.36,2.2107]
[1717780692988,2.2103,167.4,167.36,8.2405]
[1717780694712,2.2104,167.39,167.36,6.0298]
[1717780694907,2.2103,167.4,167.36,8.2405]
[1717780695090,2.2104,167.39,167.36,8.2405]
[1717780695832,2.2104,167.39,167.36,6.0298]
[1717780696336,2.2104,167.39,167.36,8.2405]
[1717780696728,2.2102,167.41,167.37,2.2106]
[1717780697533,2.2102,167.41,167.38,6.4248]
[1717780697736,2.2102,167.41,167.38,8.6353]
[1717780698031,2.2102,167.41,167.38,6.4248]
[1717780698239,2.2102,167.41,167.38,8.6353]
[1717780698410,2.2102,167.41,167.38,6.4248]
[1717780699535,2.2101,167.41,167.39,6.6028]
[1717780700013,2.2101,167.41,167.38,15.6217]
[1717780700337,2.2101,167.41,167.37,2.2105]
[1717780700635,2.2101,167.41,167.37,8.8133]
[1717780701524,2.21,167.42,167.38,8.8133]
[1717780701837,2.21,167.42,167.39,2.2104]
[1717780702037,2.21,167.42,167.39,6.6028]
[1717780702209,2.2098,167.44,167.39,6.6028]
[1717780702417,2.2098,167.44,167.4,6.6028]
[1717780702617,2.2096,167.45,167.41,2.2101]
[1717780702826,2.2097,167.44,167.4,8.813]
[1717780703020,2.2098,167.44,167.4,8.813]
[1717780703229,2.2098,167.43,167.4,6.6028]
[1717780703939,4.4192,167.45,167.4,8.813]
[1717780703940,2.2098,167.44,167.4,8.813]
[1717780704321,2.2098,167.44,167.4,6.6028]
[1717780704844,2.2095,167.46,167.42,8.279]
[1717780705049,6.20069849,167.49,167.43,2.2097]
[1717780705216,10.61889849,167.49,167.42,8.279]
[1717780705414,4.4185,167.48,167.42,6.0691]
[1717780705642,2.2096,167.45,167.42,6.0691]
[1717780706048,6.20069849,167.49,167.42,6.0691]
[1717780706220,6.20069849,167.49,167.39,15.31]
[1717780706221,2.2098,167.43,167.39,23.5894]
[1717780706419,6.6282,167.47,167.4,6.0691]
[1717780706642,6.6282,167.47,167.36,8.8427]
[1717780706643,2.2096,167.45,167.41,8.2792]
[1717780707019,2.2095,167.46,167.41,8.2791]
[1717780707328,4.4185,167.48,167.41,6.0691]
[1717780707528,2.2096,167.45,167.41,8.2791]
[1717780707737,19.8856,167.46,167.38,2.2104]
[1717780707947,58.09759849,167.49,167.35,11.0546]
[1717780707948,2.2102,167.41,167.35,4.4218]
[1717780708144,2.2102,167.41,167.37,8.2567]
[1717780708341,2.21,167.42,167.38,2.2105]
[1717780708543,2.2101,167.41,167.38,2.2105]
[1717780708847,11.049,167.44,167.38,2.2105]
[1717780709019,2.2101,167.42,167.38,2.2105]
[1717780709218,2.2101,167.41,167.38,2.2105]
[1717780709420,2.2101,167.41,167.37,8.2567]
[1717780709629,2.2103,167.4,167.37,8.2567]
[1717780709918,11.0495,167.43,167.37,8.2567]
[1717780710116,2.2102,167.41,167.37,8.2567]
[1717780710326,2.2103,167.4,167.37,8.2567]
[1717780711139,2.2102,167.41,167.37,8.2567]
[1717780711536,2.2102,167.41,167.38,2.2105]
[1717780712136,2.2102,167.41,167.37,6.0461]
[1717780712553,2.21,167.42,167.38,2.2104]
[1717780712734,2.21,167.42,167.38,8.3382]
[1717780713131,8.8379,167.46,167.39,6.2146]
[1717780713335,13.2569,167.46,167.4,24.7143]
[1717780713644,13.2569,167.46,167.4,22.5042]
[1717780713645,2.21,167.42,167.4,22.5042]
[1717780714041,2.21,167.42,167.4,6.2146]
[1717780714455,2.2099,167.43,167.4,6.2146]
[1717780714840,2.21,167.42,167.4,6.2146]
[1717780715037,2.21,167.42,167.38,8.7673]
[1717780715639,2.21,167.42,167.39,2.2104]
[1717780716050,2.2099,167.43,167.39,2.2104]
[1717780716259,2.21,167.42,167.39,2.2104]
[1717780716653,11.0481,167.45,167.39,2.2104]
[1717780716654,2.2099,167.43,167.39,2.2104]
[1717780717459,2.21,167.42,167.38,8.7673]
[1717780718456,2.21,167.42,167.39,2.2104]
[1717780718847,2.21,167.42,167.38,8.7673]
[1717780719048,2.21,167.42,167.39,2.2103]
[1717780719669,2.21,167.42,167.38,8.7673]
[1717780720153,2.2101,167.41,167.38,8.7673]
[1717780720545,2.21,167.42,167.39,2.2104]
[1717780721350,6.6288,167.45,167.39,2.2104]
[1717780721550,2.2099,167.43,167.39,2.2104]
[1717780721956,2.21,167.42,167.39,8.6917]
[1717780722348,2.2099,167.43,167.4,2.2102]
[1717780722552,2.2098,167.44,167.41,8.6914]
[1717780723081,13.2569,167.46,167.41,6.4813]
[1717780723082,2.2098,167.43,167.41,6.4813]
[1717780725657,2.2098,167.44,167.41,6.4813]
[1717780726277,2.2099,167.43,167.41,6.4813]
[1717780726859,2.21,167.42,167.41,6.4813]
[1717780727470,2.21,167.42,167.38,18.8709]
[1717780727778,2.21,167.42,167.39,8.385]
[1717780728876,2.2099,167.43,167.4,6.0063]
[1717780729182,2.2099,167.43,167.4,8.2165]
[1717780729580,2.2101,167.42,167.4,6.0063]
[1717780730163,2.2101,167.41,167.38,8.4286]
[1717780730477,2.21,167.42,167.38,8.4286]
[1717780731080,2.2101,167.41,167.38,8.4286]
[1717780731380,2.2102,167.41,167.38,6.2182]
[1717780731584,2.2103,167.4,167.34,22.2374]
[1717780731880,2.2103,167.4,167.36,2.2107]
[1717780732084,35.89,167.48,167.34,15.6043]
[1717780732284,175.89,167.47,167.34,2.211]
[1717780732585,2.2106,167.38,167.34,2.211]
[1717780732769,2.2104,167.39,167.35,2.2109]
[1717780733787,2.2105,167.38,167.34,6.5929]
[1717780734170,2.2104,167.39,167.35,2.2108]
[1717780734878,2.2104,167.39,167.34,6.5929]
[1717780735380,2.2104,167.39,167.35,2.2108]
[1717780736783,2.2104,167.39,167.36,2.2107]
[1717780737193,2.2104,167.39,167.35,2.2108]
[1717780737686,2.2104,167.39,167.36,2.2107]
[1717780737894,2.2104,167.39,167.35,2.2108]
[1717780739791,2.2105,167.38,167.35,2.2108]
[1717780740091,2.2104,167.39,167.35,2.2108]
[1717780740304,2.2105,167.38,167.35,2.2108]
[1717780740496,2.2104,167.39,167.35,2.2108]
[1717780740793,2.2103,167.4,167.36,8.2657]
[1717780741004,2.2103,167.4,167.37,2.2106]
[1717780741374,2.2103,167.4,167.36,8.2656]
[1717780741975,2.2104,167.39,167.36,12.3749]
[1717780742777,2.2105,167.38,167.36,12.3749]
[1717780742990,2.2105,167.38,167.36,6.32]
[1717780743387,2.2104,167.39,167.36,2.2107]
[1717780743709,2.2104,167.39,167.37,6.32]
[1717780744016,2.2105,167.38,167.37,6.32]
[1717780744680,2.2105,167.38,167.34,6.4812]
[1717780744903,2.2105,167.38,167.36,6.32]
[1717780745087,4.4205,167.4,167.36,6.32]
[1717780745398,2.2107,167.37,167.34,2.211]
[1717780745704,2.2107,167.37,167.34,8.531]
[1717780746004,4.4209,167.39,167.34,2.211]
[1717780746005,2.2105,167.38,167.34,2.211]
[1717780746192,2.2106,167.37,167.34,6.32]
[1717780746499,15.473,167.39,167.34,6.32]
[1717780746712,2.2107,167.37,167.34,8.531]
[1717780747029,4.4213,167.37,167.32,6.32]
[1717780747303,2.2108,167.36,167.32,2.2112]
[1717780747501,2.2108,167.36,167.33,2.2111]
[1717780747703,6.32,167.37,167.32,2.2112]
[1717780747923,2.2109,167.35,167.32,2.2112]
[1717780748098,2.2108,167.36,167.32,2.2112]
[1717780748305,2.2108,167.36,167.33,2.2111]
[1717780748619,2.2107,167.37,167.33,2.2111]
[1717780748784,2.2106,167.38,167.34,8.531]
[1717780749617,2.2107,167.37,167.34,6.32]
[1717780749912,15.4721,167.4,167.34,6.32]
[1717780749913,2.2103,167.4,167.36,2.2106]
[1717780750209,4.42,167.42,167.37,2.2106]
[1717780750415,2.21,167.42,167.39,6.32]
[1717780750590,19.15642891,167.45,167.4,2.2102]
[1717780750591,2.2099,167.43,167.4,2.2102]
[1717780750794,2.21,167.42,167.38,6.32]
[1717780751005,2.21,167.42,167.38,8.5304]
[1717780751209,2.21,167.42,167.38,2.2104]
[1717780751415,2.21,167.42,167.38,8.5304]
[1717780751888,2.21,167.42,167.38,2.2104]
[1717780752410,6.19920581,167.47,167.4,22.1631]
[1717780752620,4.418,167.5,167.42,6.4072]
[1717780752810,4.4181,167.49,167.42,6.4072]
[1717780753013,2.2095,167.46,167.42,8.6171]
[1717780753196,2.2095,167.46,167.42,2.2099]
[1717780753395,2.2095,167.46,167.39,22.387]
[1717780753396,2.2096,167.45,167.41,2.21]
[1717780754316,2.2099,167.43,167.39,2.2103]
[1717780755312,2.2098,167.44,167.4,2.2102]
[1717780755722,2.2098,167.43,167.4,2.2102]
[1717780756219,2.2098,167.43,167.39,2.2103]
[1717780756517,2.21,167.42,167.38,2.2105]
[1717780756817,2.2099,167.43,167.39,2.2102]
[1717780757017,2.2098,167.44,167.4,2.2102]
[1717780757402,2.2098,167.44,167.4,8.8474]
[1717780757611,2.2098,167.44,167.41,2.2101]
[1717780757815,8.8369,167.48,167.4,6.6372]
[1717780757816,15.4645,167.48,167.4,6.6372]
[1717780758014,2.2095,167.46,167.43,2.2098]
[1717780758220,2.2095,167.46,167.43,6.6372]
[1717780758394,2.2093,167.47,167.43,8.8469]
[1717780758599,2.2093,167.47,167.44,2.2097]
[1717780758813,11.0449,167.5,167.44,2.2097]
[1717780759037,6.20608295,167.51,167.43,6.6372]
[1717780759215,15.4658,167.47,167.41,2.2101]
[1717780759413,2.2095,167.46,167.42,23.9251]
[1717780759613,2.2095,167.46,167.43,2.2098]
[1717780759814,4.4179,167.5,167.44,2.2096]
[1717780760126,2.2092,167.49,167.45,2.2096]
[1717780760325,4.4179,167.5,167.42,26.1278]
[1717780760522,4.4179,167.5,167.41,6.0548]
[1717780760523,6.20608295,167.51,167.38,36.88]
[1717780760697,6.20608295,167.51,167.49,2.209]
[1717780760903,6.20608295,167.51,167.48,2.2091]
[1717780761435,6.20608295,167.51,167.46,4.4189]
[1717780761436,2.2089,167.5,167.46,2.2094]
[1717780761600,6.20608295,167.51,167.46,6.0927]
[1717780761601,8.41488295,167.51,167.46,6.0927]
[1717780761797,2.209,167.5,167.46,8.3021]
[1717780762027,6.20608295,167.51,167.47,2.2093]
[1717780762406,8.41488295,167.51,167.47,2.2092]
[1717780762827,2.2089,167.5,167.47,2.2092]
[1717780763327,8.41488295,167.51,167.47,24.8552]
[1717780763522,8.41488295,167.51,167.48,6.0927]
[1717780764013,8.41488295,167.51,167.48,8.3019]
[1717780764403,6.20608295,167.51,167.49,2.209]
[1717780764606,6.20608295,167.51,167.5,24.4215]
[1717780764822,2.2085,167.54,167.5,24.4215]
[1717780765013,2.2085,167.54,167.51,2.2088]
[1717780765221,2.2082,167.56,167.52,2.2086]
[1717780765424,4.4161,167.57,167.51,2.2087]
[1717780765627,2.2084,167.54,167.51,6.4437]
[1717780765814,2.2084,167.54,167.51,8.6524]
[1717780766411,2.2083,167.55,167.51,8.6524]
[1717780766914,2.2083,167.55,167.51,6.4437]
[1717780767137,2.2083,167.55,167.52,2.2086]
[1717780767424,2.2083,167.55,167.51,6.4437]
[1717780767425,2.2083,167.55,167.51,8.6524]
[1717780767647,2.2084,167.54,167.51,8.6524]
[1717780768011,8.8317,167.58,167.52,6.607]
[1717780768216,2.2081,167.56,167.52,8.8156]
[1717780768512,2.2083,167.55,167.52,8.8156]
[1717780768817,2.2083,167.55,167.52,6.607]
[1717780769249,2.2083,167.55,167.52,8.8156]
[1717780769721,15.4554,167.58,167.52,8.8155]
[1717780769722,2.2082,167.56,167.52,8.8155]
[1717780769924,2.2082,167.56,167.53,2.2085]
[1717780770378,2.2082,167.56,167.52,8.8156]
[1717780770556,2.2082,167.55,167.52,25.1247]
[1717780770742,2.2082,167.55,167.52,22.9161]
[1717780770942,2.2082,167.55,167.52,25.1247]
[1717780771139,2.2082,167.56,167.53,8.7847]
[1717780771367,2.2081,167.57,167.53,6.5762]
[1717780771552,2.2081,167.56,167.53,6.5762]
[1717780771950,2.2081,167.56,167.53,8.7847]
[1717780772170,2.2081,167.56,167.53,6.5762]
[1717780772666,2.2083,167.55,167.53,6.5762]
[1717780773167,2.2082,167.56,167.53,6.5762]
[1717780773663,2.2083,167.55,167.53,6.5762]
[1717780774048,2.2082,167.56,167.53,6.5762]
[1717780774564,2.2084,167.54,167.53,6.5762]
[1717780774767,2.2088,167.51,167.49,6.1909]
[1717780775150,2.2089,167.5,167.49,6.1909]
[1717780775468,2.2089,167.5,167.47,6.1909]
[1717780775667,2.2088,167.51,167.48,6.1909]
[1717780775967,2.2087,167.52,167.48,8.4]
[1717780776271,2.2085,167.53,167.49,2.209]
[1717780777754,2.2087,167.52,167.49,2.209]
[1717780778147,2.2086,167.53,167.49,2.209]
[1717780779051,4.4166,167.55,167.49,8.3586]
[1717780779052,2.2086,167.52,167.49,8.3586]
[1717780779251,2.2086,167.53,167.49,8.3586]
[1717780779858,2.2083,167.55,167.51,8.2336]
[1717780780066,2.2084,167.54,167.52,6.0249]
[1717780780768,2.2083,167.55,167.52,6.0249]
[1717780781671,2.2083,167.55,167.52,15.1302]
[1717780781880,2.2083,167.55,167.52,21.4595]
[1717780782056,2.2082,167.56,167.52,23.6681]
[1717780782252,2.2083,167.55,167.53,6.3293]
[1717780782455,2.208,167.57,167.53,8.5377]
[1717780782879,2.2081,167.56,167.53,6.3293]
[1717780783189,6.21059317,167.58,167.53,6.3293]
[1717780783472,2.208,167.57,167.53,8.5377]
[1717780783862,2.2081,167.56,167.53,8.5377]
[1717780784474,2.2081,167.57,167.53,8.5377]
[1717780784673,2.2081,167.57,167.51,4.4175]
[1717780784674,2.2084,167.54,167.51,6.4638]
[1717780784876,2.2088,167.51,167.45,17.94]
[1717780785054,4.4171,167.53,167.47,22.9474]
[1717780785260,2.209,167.5,167.47,22.9474]
[1717780786074,2.2088,167.51,167.47,25.1567]
[1717780786299,13.2501,167.55,167.47,25.1567]
[1717780786455,4.4171,167.53,167.47,6.4638]
[1717780786783,2.2088,167.51,167.47,6.4638]
[1717780787603,20.0,167.54,167.47,6.4638]
[1717780787878,2.2087,167.52,167.47,8.673]
[1717780788465,24.4167,167.55,167.47,8.673]
[1717780788466,2.2088,167.51,167.47,8.673]
[1717780788968,2.2087,167.52,167.47,8.673]
[1717780789168,2.2087,167.52,167.48,2.2092]
[1717780789473,2.2087,167.52,167.48,8.8323]
[1717780789863,2.2088,167.51,167.48,6.6231]
[1717780790070,2.2087,167.52,167.48,6.6231]
[1717780791188,2.2087,167.52,167.48,8.8323]
[1717780791480,2.2084,167.54,167.5,2.2089]
[1717780791684,2.2085,167.53,167.49,2.209]
[1717780791890,2.2085,167.53,167.49,8.4668]
[1717780792089,2.2084,167.54,167.49,8.4668]
[1717780792277,2.2084,167.54,167.5,2.2089]
[1717780792582,11.0391,167.59,167.51,6.2578]
[1717780792772,11.0391,167.59,167.52,6.2578]
[1717780792773,2.2083,167.55,167.52,6.2578]
[1717780793386,2.2081,167.56,167.52,6.2578]
[1717780793598,2.2082,167.55,167.52,6.2578]
[1717780796187,2.2084,167.54,167.52,6.2578]
[1717780796779,2.2083,167.55,167.52,6.2578]
[1717780797365,2.2083,167.55,167.52,8.4664]
[1717780797593,2.2083,167.55,167.52,6.2578]
[1717780798087,2.2083,167.55,167.52,8.4664]
[1717780798290,2.208,167.57,167.53,23.8209]
[1717780799565,2.2081,167.56,167.53,23.8209]
[1717780799761,2.208,167.57,167.53,23.8209]
[1717780799973,2.208,167.57,167.54,6.2179]
[1717780800294,22.2079,167.58,167.54,8.4262]
[1717780800494,2.208,167.57,167.54,6.2179]
[1717780801369,2.2081,167.56,167.54,6.2179]
[1717780801981,2.2081,167.57,167.54,6.2179]
[1717780802185,2.2079,167.58,167.54,24.3083]
[1717780802389,8.8295,167.62,167.54,22.1]
[1717780802687,2.208,167.57,167.54,24.3083]
[1717780802887,2.208,167.57,167.54,24.3084]
[1717780803467,2.2081,167.56,167.54,22.1]
[1717780803697,2.2081,167.57,167.54,22.1]
[1717780803901,2.2081,167.57,167.54,30.6084]
[1717780804088,2.2079,167.58,167.54,30.6084]
[1717780804293,2.2079,167.58,167.55,8.5082]
[1717780804597,2.2079,167.58,167.55,6.3]
[1717780804782,24.4153,167.6,167.55,6.3]
[1717780804783,2.208,167.57,167.55,6.3]
[1717780805593,2.208,167.57,167.54,12.6599]
[1717780805874,2.208,167.57,167.54,14.8683]
[1717780806073,2.208,167.57,167.55,6.3]
[1717780806276,2.2081,167.56,167.5,21.8458]
[1717780806487,2.2083,167.55,167.53,6.3]
[1717780806777,12.9234,167.59,167.53,6.2982]
[1717780806778,2.2082,167.56,167.53,6.2982]
[1717780806983,2.2081,167.57,167.54,14.8066]
[1717780807216,2.2081,167.57,167.54,12.5982]
[1717780807714,2.2081,167.56,167.54,12.5982]
[1717780808614,4.4158,167.58,167.54,6.2982]
[1717780808615,2.2082,167.55,167.54,6.2982]
[1717780808804,2.2082,167.56,167.54,6.2982]
[1717780809112,2.2082,167.55,167.5,26.9389]
[1717780809298,2.2084,167.54,167.51,2.2087]
[1717780809485,8.8326,167.57,167.52,22.5408]
[1717780809683,4.4159,167.58,167.54,6.3]
[1717780809684,2.2082,167.56,167.54,6.3]
[1717780810202,2.2083,167.55,167.53,6.3]
[1717780810502,2.2084,167.54,167.52,12.3122]
[1717780811299,2.2083,167.55,167.52,12.3122]
[1717780811688,2.2083,167.55,167.52,14.5208]
[1717780812007,2.2083,167.55,167.53,6.3]
[1717780813104,2.2082,167.56,167.53,6.3]
[1717780813791,2.2082,167.56,167.53,8.5085]
[1717780814408,2.2082,167.56,167.53,12.5724]
[1717780814577,2.2081,167.57,167.53,8.4808]
[1717780814776,20.0,167.58,167.53,8.4808]
[1717780815003,2.2082,167.56,167.53,6.2724]
[1717780815418,2.2083,167.55,167.53,6.2724]
[1717780816198,2.2083,167.55,167.54,6.3]
[1717780816896,2.2084,167.54,167.51,22.8958]
[1717780817096,2.2084,167.54,167.52,6.3]
[1717780817600,2.2083,167.55,167.52,6.3]
[1717780818820,4.4161,167.57,167.52,6.3]
[1717780819024,41.7557,167.58,167.52,6.3]
[1717780819025,26.3,167.58,167.52,6.3]
[1717780819238,6.3,167.53,167.45,6.3]
[1717780819526,6.3,167.52,167.45,6.3]
[1717780819902,2.2091,167.49,167.45,2.2095]
[1717780820116,2.2091,167.49,167.46,2.2094]
[1717780820305,11.0441,167.51,167.45,8.5095]
[1717780820619,2.2092,167.48,167.44,14.9187]
[1717780821437,2.2094,167.47,167.44,6.4091]
[1717780821619,2.2096,167.45,167.42,2.2099]
[1717780821801,2.2096,167.45,167.42,8.5099]
[1717780822004,2.2096,167.45,167.42,2.2099]
[1717780822325,2.2095,167.46,167.42,2.2099]
[1717780822513,2.2095,167.46,167.42,8.5099]
[1717780822716,2.2095,167.46,167.43,2.2098]
[1717780823301,10.7183,167.49,167.43,8.5098]
[1717780823621,10.7186,167.48,167.39,21.9491]
[1717780823830,2.2098,167.44,167.4,2.2102]
[1717780824007,2.2098,167.43,167.41,6.3]
[1717780824425,2.2098,167.44,167.41,6.3]
[1717780824627,2.2098,167.44,167.41,8.5101]
[1717780824817,2.2098,167.44,167.41,6.3]
[1717780825016,2.2098,167.44,167.42,6.3]
[1717780825724,2.2096,167.45,167.42,6.3]
[1717780825930,2.2096,167.45,167.44,6.3]
[1717780827015,2.2096,167.45,167.41,2.21]
[1717780827216,2.2096,167.45,167.44,6.3]
[1717780827420,2.2096,167.45,167.41,2.21]
[1717780827726,2.2096,167.45,167.44,6.3]
[1717780830341,2.2097,167.44,167.43,6.3]
[1717780830946,2.2099,167.43,167.4,8.6264]
[1717780831129,6.3,167.49,167.42,6.3]
[1717780831312,6.3,167.46,167.37,6.0951]
[1717780831525,4.4195,167.44,167.39,6.3]
[1717780831716,2.21,167.42,167.4,6.3]
[1717780832213,2.21,167.42,167.39,6.3]
[1717780832625,2.21,167.42,167.4,6.3]
[1717780834125,2.2099,167.43,167.41,6.3]
[1717780834713,2.2099,167.43,167.38,2.2104]
[1717780834910,2.21,167.42,167.38,2.2104]
[1717780835113,2.21,167.42,167.4,6.3]
[1717780835929,2.21,167.42,167.37,8.3056]
[1717780836129,2.2101,167.41,167.4,6.3]
[1717780836348,4.4198,167.43,167.36,2.2107]
[1717780836657,4.4198,167.43,167.38,6.3]
[1717780836658,2.2102,167.41,167.38,6.3]
[1717780837754,2.2102,167.4,167.38,6.3]
[1717780838132,2.2102,167.41,167.38,6.3]
[1717780838551,2.2102,167.41,167.39,6.3]
[1717780839244,2.2102,167.4,167.39,6.3]
[1717780839440,2.2102,167.4,167.38,6.3]